bitfinex-derivatives/quotes_ETHF0:USTF0_20240913
["timestamp","ask_amount","ask_price","bid_price","bid_amount"]
[1726237262752,0.42258,2366.1,2365.8,3.3]
[1726237262954,0.386,2366.1,2365.8,3.72261]
[1726237263451,0.80857,2366.1,2365.8,4.0835]
[1726237263655,0.80857,2366.1,2365.8,4.50612]
[1726237263849,0.80857,2366.1,2365.8,4.0835]
[1726237264267,0.42262,2365.8,2365.7,3.2078]
[1726237264648,2.59518053,2366.1,2365.7,3.2078]
[1726237264956,0.42262,2365.9,2365.7,3.2078]
[1726237265150,2.59518053,2366.1,2365.7,3.2078]
[1726237265347,0.42259,2366.0,2365.7,3.2078]
[1726237265555,0.80858,2366.1,2365.7,3.6144]
[1726237265857,4.146,2366.3,2366.0,3.2078]
[1726237266053,2.93513875,2366.4,2366.0,3.2078]
[1726237266359,0.42255,2366.2,2366.0,3.598]
[1726237266561,2.20918053,2366.4,2366.0,3.598]
[1726237266756,1.21131,2366.5,2366.1,3.72256]
[1726237267453,0.42252,2366.4,2366.1,3.3]
[1726237267660,0.42257,2366.1,2366.0,3.9822]
[1726237267965,4.64898,2366.1,2365.7,0.82923]
[1726237268147,0.42256,2366.2,2365.8,4.02651]
[1726237268350,2.20918053,2366.4,2365.8,4.02651]
[1726237268351,0.42257,2366.1,2365.8,4.02652]
[1726237268859,0.42256,2366.2,2365.8,0.81871]
[1726237269060,2.20918053,2366.4,2365.8,6.9039]
[1726237269359,0.42254,2366.3,2365.8,6.9039]
[1726237269659,0.42254,2366.3,2365.9,0.4226]
[1726237270047,6.54510413,2366.5,2365.8,6.9039]
[1726237270244,0.42253,2366.3,2366.0,3.72258]
[1726237270445,0.42253,2366.4,2366.0,3.3]
[1726237270650,0.42253,2366.4,2366.0,3.72258]
[1726237270856,0.42253,2366.4,2366.1,3.2078]
[1726237271258,1.1085236,2366.5,2366.1,3.2078]
[1726237271455,1.1085236,2366.5,2366.1,3.5832]
[1726237271658,0.42254,2366.3,2366.1,3.5832]
[1726237271848,0.42254,2366.3,2366.1,0.3754]
[1726237272048,6.52550413,2366.5,2366.1,0.3754]
[1726237272257,0.42252,2366.4,2366.1,0.3754]
[1726237272864,0.42253,2366.3,2366.1,0.3754]
[1726237274159,0.42253,2366.3,2366.0,3.63038]
[1726237274160,0.42257,2366.1,2366.0,3.2078]
[1726237274363,3.3,2366.2,2365.8,0.3961]
[1726237274556,0.4226,2365.9,2365.8,0.3961]
[1726237274755,0.3761,2366.0,2365.8,0.3961]
[1726237275061,0.42261,2365.9,2365.7,0.4066]
[1726237275262,0.3761,2366.0,2365.7,0.4066]
[1726237275457,0.42262,2365.9,2365.6,1.23795]
[1726237276161,0.7562,2366.0,2365.6,1.23795]
[1726237276162,0.42263,2365.8,2365.6,0.8153]
[1726237276364,0.42262,2365.9,2365.6,1.23795]
[1726237276554,0.42262,2365.8,2365.6,0.8153]
[1726237276961,0.42263,2365.8,2365.6,0.8153]
[1726237277252,0.7562,2366.0,2365.6,1.23795]
[1726237277253,0.42261,2365.9,2365.6,1.23795]
[1726237277967,1.1788,2366.0,2365.7,0.42264]
[1726237278156,2.63174053,2366.2,2365.9,0.4226]
[1726237278553,2.63172053,2366.3,2366.0,0.42258]
[1726237278761,0.42255,2366.3,2366.1,0.4097]
[1726237279054,0.42253,2366.3,2366.1,3.6175]
[1726237279256,0.42253,2366.3,2366.2,0.396]
[1726237279663,4.64893,2366.3,2366.2,0.396]
[1726237280456,0.42253,2366.3,2366.2,0.396]
[1726237280660,2.58498053,2366.4,2366.2,0.396]
[1726237280853,1.42826,2366.5,2366.2,0.396]
[1726237280854,2.20918053,2366.5,2366.2,0.396]
[1726237281057,5.83947053,2366.6,2366.2,0.81854]
[1726237281256,5.41698053,2366.6,2366.2,0.396]
[1726237281653,24.42588053,2366.7,2366.4,3.2078]
[1726237281859,24.42587053,2366.7,2366.4,3.63031]
[1726237282059,22.21669,2366.7,2366.4,3.63031]
[1726237282255,22.21669,2366.7,2366.4,3.2078]
[1726237282460,24.42587053,2366.7,2366.4,3.2078]
[1726237282954,22.21669,2366.7,2366.4,3.2078]
[1726237283153,24.42587053,2366.7,2366.4,3.2078]
[1726237284170,0.42248,2366.6,2366.4,3.2078]
[1726237284367,2.20918053,2366.6,2366.2,0.396]
[1726237284572,2.63169053,2366.5,2366.2,0.396]
[1726237284760,0.42251,2366.5,2366.3,3.2078]
[1726237285268,0.42251,2366.5,2366.2,0.396]
[1726237285471,0.42251,2366.5,2366.2,0.81855]
[1726237285658,3.26540053,2366.6,2366.2,0.396]
[1726237285965,0.42251,2366.4,2366.2,0.396]
[1726237286170,2.63169053,2366.5,2366.2,0.396]
[1726237286361,0.42251,2366.5,2366.2,0.396]
[1726237286561,2.63169053,2366.5,2366.2,0.396]
[1726237286767,2.63169053,2366.5,2366.2,0.81855]
[1726237286961,2.63167053,2366.6,2366.2,0.396]
[1726237287172,2.63167053,2366.6,2366.3,3.63033]
[1726237288165,2.63167053,2366.6,2366.3,0.42253]
[1726237288464,2.20918053,2366.5,2366.3,0.42253]
[1726237288857,2.63167053,2366.6,2366.3,0.42253]
[1726237289161,2.20918053,2366.6,2366.3,6.5078]
[1726237289363,24.00341053,2366.7,2366.6,0.42248]
[1726237289569,24.00341053,2366.7,2366.3,6.5078]
[1726237289767,24.00341053,2366.7,2366.6,0.82848]
[1726237292269,21.79423,2366.7,2366.6,0.82848]
[1726237292569,21.79423,2366.7,2366.6,15.31808]
[1726237292768,21.17923,2366.7,2366.6,15.71518]
[1726237294365,21.17923,2366.7,2366.6,9.71518]
[1726237294571,21.17923,2366.7,2366.6,15.71518]
[1726237294771,21.17923,2366.7,2366.6,8.65898]
[1726237294972,21.60169,2366.7,2366.6,3.6138]
[1726237295173,22.65785,2366.7,2366.6,3.2078]
[1726237295373,0.42251,2366.4,2366.3,0.4078]
[1726237295573,1.05632,2366.4,2365.9,6.5078]
[1726237295782,0.42259,2366.0,2365.9,3.2078]
[1726237295967,3.26561053,2366.1,2365.9,3.2078]
[1726237296173,3.26561053,2366.1,2365.7,0.7831]
[1726237296174,6.43558053,2366.1,2365.7,0.7831]
[1726237296371,0.42263,2365.8,2365.4,3.72269]
[1726237296672,2.20918053,2365.9,2365.4,3.72269]
[1726237296975,0.42267,2365.6,2365.3,3.9909]
[1726237297178,2.20918053,2365.7,2365.3,3.9909]
[1726237297369,2.63183053,2365.7,2365.3,3.9909]
[1726237298182,2.20918053,2365.7,2365.3,3.9909]
[1726237298380,0.42267,2365.6,2365.3,3.9909]
[1726237298777,2.63183053,2365.7,2365.3,3.9909]
[1726237299179,0.42266,2365.6,2365.3,3.9909]
[1726237299385,2.20918053,2365.7,2365.3,3.9909]
[1726237299678,2.20918053,2365.8,2365.5,3.3]
[1726237300290,2.20918053,2365.9,2365.5,3.72267]
[1726237301078,2.20918053,2365.9,2365.6,3.2078]
[1726237301371,2.20918053,2365.9,2365.7,0.42263]
[1726237301576,2.63174053,2366.2,2365.8,3.3]
[1726237301783,2.20918053,2366.2,2366.0,3.2078]
[1726237302481,2.63173053,2366.2,2366.0,3.2078]
[1726237302678,2.20918053,2366.2,2366.0,3.2078]
[1726237303082,0.42257,2366.1,2366.0,3.2078]
[1726237303375,2.63175053,2366.1,2366.0,3.2078]
[1726237303771,2.20918053,2366.1,2366.0,3.2078]
[1726237304082,2.20918053,2366.2,2366.0,3.63038]
[1726237304279,2.20918053,2366.2,2366.0,3.2078]
[1726237304983,2.63174053,2366.2,2366.0,3.2078]
[1726237305185,2.20918053,2366.2,2366.0,3.2078]
[1726237305480,2.63175053,2366.2,2366.0,3.2078]
[1726237305680,2.20918053,2366.4,2366.1,3.3]
[1726237305981,2.20918053,2366.5,2366.1,3.72256]
[1726237306182,0.42251,2366.4,2366.1,3.3]
[1726237306381,2.20918053,2366.5,2366.1,3.72255]
[1726237306580,2.20918053,2366.5,2366.2,0.42254]
[1726237306782,0.42252,2366.4,2366.0,3.63037]
[1726237307086,2.63169053,2366.5,2366.1,0.42256]
[1726237308882,2.20918053,2366.5,2366.2,0.42254]
[1726237309080,2.63168053,2366.5,2366.3,3.2078]
[1726237309281,2.20918053,2366.5,2366.3,3.63032]
[1726237309478,2.76147567,2366.6,2366.4,0.4078]
[1726237309479,2.20918053,2366.6,2366.4,0.4078]
[1726237309690,2.20918053,2366.6,2366.5,0.4225]
[1726237309889,23.38841053,2366.7,2366.5,0.4225]
[1726237310189,23.81087053,2366.7,2366.4,0.8303]
[1726237310484,0.42248,2366.6,2366.4,0.4078]
[1726237310990,23.38841053,2366.7,2366.4,0.83031]
[1726237310991,23.81088053,2366.7,2366.4,0.83031]
[1726237311788,23.38841053,2366.7,2366.5,0.42249]
[1726237312081,23.81087053,2366.7,2366.4,0.83031]
[1726237312490,23.38841053,2366.7,2366.5,0.42248]
[1726237312982,23.38841053,2366.7,2366.4,0.4078]
[1726237313187,21.17923,2366.7,2366.6,3.63028]
[1726237313990,21.17923,2366.7,2366.6,3.2078]
[1726237314189,21.17923,2366.7,2366.6,7.85588]
[1726237314897,21.17923,2366.7,2366.6,8.25528]
[1726237318296,21.17923,2366.7,2366.6,7.85588]
[1726237321197,21.17923,2366.7,2366.6,3.2078]
[1726237321403,21.60169,2366.7,2366.6,3.63028]
[1726237321901,21.17923,2366.7,2366.6,3.63028]
[1726237322998,21.17923,2366.7,2366.6,7.85588]
[1726237323300,21.17923,2366.7,2366.6,3.63028]
[1726237323894,21.17923,2366.7,2366.6,7.85588]
[1726237324506,21.17923,2366.7,2366.6,8.91208]
[1726237324708,21.17923,2366.7,2366.6,7.85588]
[1726237326109,21.60169,2366.7,2366.6,3.63028]
[1726237326804,21.60169,2366.7,2366.6,0.42248]
[1726237327008,21.17923,2366.7,2366.6,3.63028]
[1726237328807,21.17923,2366.7,2366.6,8.91208]
[1726237330510,21.17923,2366.7,2366.6,3.63028]
[1726237331014,21.17923,2366.7,2366.6,7.85588]
[1726237332117,21.17923,2366.7,2366.6,3.63028]
[1726237332414,21.17923,2366.7,2366.6,8.91208]
[1726237332615,21.17923,2366.7,2366.6,3.63028]
[1726237333112,21.17923,2366.7,2366.6,7.85588]
[1726237333415,21.17923,2366.7,2366.6,8.91208]
[1726237334009,21.17923,2366.7,2366.6,3.63028]
[1726237334309,21.60169,2366.7,2366.6,3.63028]
[1726237334511,21.17923,2366.7,2366.6,3.63028]
[1726237334704,21.17923,2366.7,2366.6,7.85588]
[1726237334910,21.17923,2366.7,2366.6,8.91208]
[1726237335813,21.17923,2366.7,2366.6,10.35148]
[1726237337316,21.17923,2366.7,2366.6,9.96828]
[1726237337912,21.17923,2366.7,2366.6,4.68648]
[1726237338915,21.17923,2366.7,2366.6,3.63028]
[1726237339310,21.56393,2366.7,2366.6,3.63028]
[1726237339508,21.56393,2366.7,2366.6,3.2078]
[1726237339714,21.98639,2366.7,2366.6,3.2078]
[1726237340112,21.9864,2366.7,2366.6,0.42248]
[1726237340520,21.98639,2366.7,2366.6,3.63028]
[1726237340716,21.98639,2366.7,2366.6,0.42248]
[1726237341022,21.98639,2366.7,2366.6,3.63028]
[1726237341622,21.56393,2366.7,2366.6,3.63028]
[1726237341811,21.17923,2366.7,2366.6,3.63028]
[1726237342824,21.17923,2366.7,2366.6,4.68648]
[1726237343020,21.17923,2366.7,2366.6,3.63028]
[1726237344124,21.60169,2366.7,2366.6,3.63028]
[1726237344316,21.60169,2366.7,2366.6,0.42248]
[1726237344517,21.60169,2366.7,2366.6,3.63028]
[1726237345222,21.17923,2366.7,2366.6,3.63028]
[1726237345530,25.82729,2366.7,2366.6,3.2078]
[1726237345921,21.17923,2366.7,2366.6,3.63028]
[1726237346418,21.17923,2366.7,2366.6,0.42248]
[1726237347427,23.38841053,2366.7,2366.6,0.42248]
[1726237347618,27.61401053,2366.7,2366.4,0.42251]
[1726237347816,0.81049,2366.6,2366.4,0.42251]
[1726237348223,23.38841053,2366.7,2366.6,0.42248]
[1726237348422,23.38841053,2366.7,2366.6,3.63028]
[1726237349224,23.38841053,2366.7,2366.6,0.42248]
[1726237349431,23.38841053,2366.7,2366.6,3.63028]
[1726237349633,21.17923,2366.7,2366.6,3.63028]
[1726237350025,21.17923,2366.7,2366.6,4.68648]
[1726237350224,21.17923,2366.7,2366.6,8.91208]
[1726237353924,21.17923,2366.7,2366.6,4.68648]
[1726237356138,21.17923,2366.7,2366.6,15.96828]
[1726237356336,21.17923,2366.7,2366.6,9.96828]
[1726237356637,21.17923,2366.7,2366.6,8.91208]
[1726237356838,21.17923,2366.7,2366.6,15.96828]
[1726237357141,21.17923,2366.7,2366.6,9.96828]
[1726237357434,21.17923,2366.7,2366.6,17.05858457]
[1726237357631,21.17923,2366.7,2366.6,12.29261015]
[1726237357836,21.17923,2366.7,2366.6,13.38736197]
[1726237358138,21.17923,2366.7,2366.6,13.46865445]
[1726237358535,21.17923,2366.7,2366.6,12.92783054]
[1726237358839,21.17923,2366.7,2366.6,11.55578935]
[1726237359041,21.17923,2366.7,2366.6,11.06291295]
[1726237359237,21.17923,2366.7,2366.6,10.00671295]
[1726237359438,21.17923,2366.7,2366.6,8.91208]
[1726237359836,21.17923,2366.7,2366.6,3.63028]
[1726237360840,21.17923,2366.7,2366.6,4.68648]
[1726237361337,21.17923,2366.7,2366.6,3.63028]
[1726237367635,21.60169,2366.7,2366.6,3.63028]
[1726237367833,21.54963,2366.7,2366.6,3.63028]
[1726237368038,0.42248,2366.6,2366.5,0.42249]
[1726237368238,0.4225,2366.5,2366.4,0.4225]
[1726237368439,2.63167053,2366.6,2366.3,6.9145]
[1726237368733,2.60818053,2366.5,2366.4,0.4225]
[1726237368933,3.03068053,2366.5,2366.3,6.93032]
[1726237369135,2.60818053,2366.5,2366.4,0.42251]
[1726237369334,2.60818053,2366.5,2366.3,6.5078]
[1726237369642,2.60818053,2366.5,2366.4,0.42251]
[1726237369838,2.20918053,2366.6,2366.5,0.4225]
[1726237370443,23.75881053,2366.7,2366.6,0.42248]
[1726237370629,23.75881053,2366.7,2366.6,3.63028]
[1726237371031,23.75881053,2366.7,2366.6,3.2078]
[1726237371236,21.54963,2366.7,2366.6,3.63028]
[1726237371436,23.7653617,2366.7,2366.6,3.63028]
[1726237371643,21.54963,2366.7,2366.6,3.63028]
[1726237371948,24.73356567,2366.7,2366.5,0.42248]
[1726237372248,2.21580757,2366.6,2366.5,0.42248]
[1726237372446,2.21580757,2366.6,2366.4,3.3]
[1726237372745,24.31110567,2366.7,2366.4,3.7225]
[1726237372746,2.21580757,2366.5,2366.4,3.7225]
[1726237373060,24.73357567,2366.7,2366.5,0.4225]
[1726237373642,2.21575258,2366.6,2366.5,0.4225]
[1726237373840,2.21575258,2366.6,2366.5,3.6303]
[1726237374445,23.39498258,2366.7,2366.6,0.42248]
[1726237375042,23.39484676,2366.7,2366.6,0.42248]
[1726237375241,21.17923,2366.7,2366.6,0.42248]
[1726237375440,21.17923,2366.7,2366.6,3.72248]
[1726237375441,23.39492194,2366.7,2366.6,3.72248]
[1726237375643,23.39492194,2366.7,2366.6,4.10978]
[1726237375844,23.81738194,2366.7,2366.6,4.10978]
[1726237376252,23.81738194,2366.7,2366.6,0.42248]
[1726237376451,24.20748194,2366.7,2366.6,0.42248]
[1726237376752,0.42248,2366.6,2366.5,3.63028]
[1726237376946,2.21571079,2366.6,2366.5,3.63028]
[1726237377354,3.58205567,2366.6,2366.5,3.2078]
[1726237377961,0.82058,2366.6,2366.5,3.2078]
[1726237378351,3.58205567,2366.6,2366.5,3.2078]
[1726237378648,0.82058,2366.6,2366.5,3.2078]
[1726237379155,0.3981,2366.6,2366.5,3.6303]
[1726237379450,2.61357303,2366.6,2366.5,3.6303]
[1726237379952,23.39470303,2366.7,2366.6,0.42248]
[1726237382049,23.39470303,2366.7,2366.6,3.72248]
[1726237383447,23.81716303,2366.7,2366.6,3.72248]
[1726237383649,23.39470303,2366.7,2366.6,3.72248]
[1726237384151,23.81716303,2366.7,2366.6,3.72248]
[1726237384650,23.39470303,2366.7,2366.6,3.72248]
[1726237385055,21.17923,2366.7,2366.6,3.72248]
[1726237385251,23.39470303,2366.7,2366.6,3.72248]
[1726237385753,21.17923,2366.7,2366.6,3.72248]
[1726237387148,21.17923,2366.7,2366.6,4.77868]
[1726237387652,21.17923,2366.7,2366.6,10.09891295]
[1726237389556,21.17923,2366.7,2366.6,9.00428]
[1726237389951,21.17923,2366.7,2366.6,0.42248]
[1726237391151,21.17923,2366.7,2366.6,5.70428]
[1726237391955,21.17923,2366.7,2366.6,6.76048]
[1726237392949,21.17923,2366.7,2366.6,5.70428]
[1726237396662,21.17923,2366.7,2366.6,6.76057]
[1726237398147,21.17923,2366.7,2366.6,8.28057]
[1726237403469,6.85964,2366.7,2366.6,14.28057]
[1726237403660,3.86606594,2367.6,2366.6,14.28057]
[1726237403661,0.56633303,2367.6,2367.5,2.53418]
[1726237403863,2.76147567,2367.9,2367.5,4.26371]
[1726237404163,4.66686594,2368.3,2367.9,0.42229]
[1726237404164,0.4081,2368.0,2367.9,0.42229]
[1726237404364,0.4081,2368.0,2367.9,1.94229]
[1726237404557,4.6313,2368.0,2367.9,1.52]
[1726237404758,5.05357,2368.0,2367.9,1.52]
[1726237404963,0.42229,2367.9,2367.8,1.52]
[1726237406464,0.42229,2367.9,2367.7,0.42232]
[1726237406765,0.7678,2367.8,2367.7,0.42232]
[1726237407263,4.991,2367.8,2367.7,0.42232]
[1726237407464,0.42232,2367.7,2367.6,3.3]
[1726237407670,1.19011,2367.8,2367.6,0.42234]
[1726237407965,1.19011,2367.8,2367.5,0.42236]
[1726237407966,0.7678,2367.8,2367.5,0.42236]
[1726237408169,0.42233,2367.7,2367.4,3.3]
[1726237408370,0.42233,2367.7,2367.5,0.42235]
[1726237408570,0.3875,2367.6,2367.5,0.42235]
[1726237408770,4.6115,2367.6,2367.5,3.63015]
[1726237409070,4.6115,2367.6,2367.5,3.63016]
[1726237409272,4.6115,2367.6,2367.5,0.42236]
[1726237409670,5.03384,2367.6,2367.4,3.72236]
[1726237409876,5.03384,2367.6,2367.5,0.42236]
[1726237410173,0.42236,2367.5,2367.3,0.42238]
[1726237410477,0.80985,2367.6,2367.4,0.42237]
[1726237410879,5.03385,2367.6,2367.4,0.42237]
[1726237411175,5.03385,2367.6,2367.2,6.5078]
[1726237411369,0.3875,2367.6,2367.5,3.3]
[1726237411573,0.3875,2367.6,2367.5,3.72236]
[1726237411776,4.6115,2367.6,2367.5,3.72236]
[1726237415379,5.03384,2367.6,2367.5,3.3]
[1726237415687,4.6115,2367.6,2367.5,3.72236]
[1726237415881,5.03384,2367.6,2367.5,3.3]
[1726237417086,5.03384,2367.6,2367.4,0.42237]
[1726237417287,0.42237,2367.5,2367.3,0.42239]
[1726237417490,0.80986,2367.6,2367.4,0.42237]
[1726237417681,0.42237,2367.5,2367.3,0.42238]
[1726237417883,0.42237,2367.5,2366.3,0.73319078]
[1726237417884,1.05591,2367.5,2366.9,7.4058]
[1726237418092,0.42239,2367.4,2367.0,4.35613]
[1726237418290,0.7724,2367.3,2367.0,4.35613]
[1726237418486,0.7724,2367.3,2367.2,0.4224]
[1726237419183,0.7724,2367.3,2367.0,3.3]
[1726237419388,0.81142,2367.2,2366.9,3.2078]
[1726237420090,0.389,2367.2,2367.1,0.42243]
[1726237422591,0.389,2367.2,2367.0,0.42244]
[1726237422892,0.42243,2367.1,2367.0,0.42244]
[1726237424194,1.44504,2367.2,2366.9,3.63025]
[1726237424392,0.389,2367.2,2367.0,0.42244]
[1726237424593,0.389,2367.2,2367.1,0.42243]
[1726237425099,5.03623,2367.2,2367.0,0.42244]
[1726237425293,0.42243,2367.1,2366.9,3.63025]
[1726237425595,0.42245,2367.0,2366.9,3.2078]
[1726237426296,0.42245,2367.0,2366.9,3.63027]
[1726237426690,0.42245,2367.0,2366.9,3.2078]
[1726237427095,0.81142,2367.2,2367.1,0.42243]
[1726237427494,5.03622,2367.2,2367.1,0.42243]
[1726237427699,0.81142,2367.2,2367.0,0.42244]
[1726237428091,0.81142,2367.2,2366.9,3.2078]
[1726237428295,0.81142,2367.2,2367.1,0.42243]
[1726237428500,3.18386567,2367.4,2367.2,0.4224]
[1726237428703,0.4224,2367.3,2367.2,0.815]
[1726237428905,4.6464,2367.3,2367.2,0.815]
[1726237429101,4.224,2367.3,2367.2,0.815]
[1726237430007,4.6464,2367.3,2367.2,0.815]
[1726237431604,1.22459,2367.4,2367.2,0.815]
[1726237432209,1.22459,2367.4,2367.2,0.81501]
[1726237433702,3.43537076,2367.4,2367.2,0.81501]
[1726237436512,0.4224,2367.3,2367.2,0.3926]
[1726237436705,2.21078076,2367.3,2367.0,0.42245]
[1726237436901,3.26678076,2367.3,2366.9,3.2078]
[1726237437104,2.63321076,2367.2,2367.0,0.42244]
[1726237437614,0.42243,2367.2,2367.0,0.42244]
[1726237437912,2.63320076,2367.2,2366.9,3.2078]
[1726237438412,2.63320076,2367.2,2366.8,2.95871]
[1726237438814,2.63318076,2367.3,2367.1,0.42243]
[1726237439017,0.42241,2367.2,2367.1,0.42243]
[1726237439317,2.63320076,2367.2,2367.0,0.42245]
[1726237439819,2.63320076,2367.2,2367.0,0.42244]
[1726237440515,2.63320076,2367.2,2367.1,0.42243]
[1726237440713,2.63320076,2367.2,2367.0,0.42244]
[1726237441107,2.63320076,2367.2,2367.1,0.42243]
[1726237441307,2.63320076,2367.2,2367.0,0.42244]
[1726237441513,2.63320076,2367.2,2367.1,0.42243]
[1726237441716,2.21078076,2367.2,2367.1,0.42243]
[1726237442014,2.63319076,2367.3,2367.1,0.42243]
[1726237442203,2.21078076,2367.2,2367.1,0.42243]
[1726237442404,0.42241,2367.3,2367.2,0.42241]
[1726237442703,2.63382034,2367.3,2367.1,0.42242]
[1726237442909,2.63382437,2367.3,2367.1,0.42242]
[1726237443109,2.21141437,2367.2,2367.1,0.42242]
[1726237443311,2.21141437,2367.3,2367.2,0.42241]
[1726237443706,2.21141437,2367.3,2367.1,1.9164]
[1726237443915,2.21141437,2367.3,2367.2,0.42241]
[1726237445611,3.98605567,2367.4,2367.3,0.4224]
[1726237445612,2.21141437,2367.4,2367.3,0.4224]
[1726237445817,4.3695708,2367.8,2367.3,0.4224]
[1726237445818,2.63376437,2367.6,2367.3,1.52]
[1726237446014,2.63376437,2367.6,2367.5,0.42236]
[1726237446213,0.42235,2367.6,2367.5,0.42236]
[1726237446418,4.224,2367.6,2367.2,1.52]
[1726237446611,0.42238,2367.4,2367.3,0.4224]
[1726237446808,2.21153805,2367.4,2367.1,1.9164]
[1726237447014,0.3695,2367.3,2367.1,1.9164]
[1726237447815,3.00344805,2367.3,2367.1,0.42242]
[1726237448113,0.7542,2367.2,2367.1,0.42242]
[1726237448312,2.21153805,2367.2,2367.1,0.42242]
[1726237448518,2.58103805,2367.3,2367.2,0.42241]
[1726237448718,2.58103805,2367.3,2367.2,1.94241]
[1726237449114,2.21153805,2367.3,2367.2,1.94241]
[1726237449816,2.21153805,2367.3,2367.2,5.15021]
[1726237450214,2.21153805,2367.3,2367.2,6.20625]
[1726237450414,3.51567567,2367.5,2367.4,0.42238]
[1726237450415,2.21153805,2367.5,2367.4,0.42238]
[1726237451920,2.60013805,2367.6,2367.5,0.42236]
[1726237452114,2.21153805,2367.6,2367.5,5.15016]
[1726237452323,2.21153805,2367.7,2367.6,0.42234]
[1726237452527,2.21153805,2367.8,2367.7,0.42232]
[1726237452722,0.42232,2367.7,2367.2,4.29943215]
[1726237452923,3.39375234,2367.7,2367.5,3.63015]
[1726237453224,3.39375234,2367.7,2367.6,1.94234]
[1726237453225,2.21285234,2367.7,2367.6,1.94234]
[1726237453618,2.21285234,2367.8,2367.7,0.42232]
[1726237453925,3.51457567,2367.9,2367.8,0.42231]
[1726237454122,2.76147567,2368.0,2367.9,0.42229]
[1726237454725,3.93997567,2368.1,2367.9,0.42229]
[1726237454922,4.36223567,2368.1,2367.9,0.42229]
[1726237455236,3.93997567,2368.1,2367.9,0.42229]
[1726237455822,4.36223567,2368.1,2367.8,0.79809]
[1726237456026,2.21212693,2367.9,2367.8,0.3758]
[1726237456323,4.36223567,2368.1,2367.8,0.3758]
[1726237456324,2.21212693,2368.0,2367.9,0.42229]
[1726237457319,4.36222567,2368.1,2367.9,0.42229]
[1726237457527,2.211404,2368.0,2367.9,0.42229]
[1726237458530,3.389904,2368.1,2368.0,0.42227]
[1726237458831,1.1785,2368.1,2368.0,0.42227]
[1726237459027,3.389904,2368.1,2368.0,0.42227]
[1726237459435,3.389904,2368.1,2367.9,0.42228]
[1726237459640,1.1785,2368.1,2368.0,0.42227]
[1726237459840,1.1785,2368.1,2367.9,0.42227]
[1726237460041,1.1785,2368.1,2368.0,0.42227]
[1726237460341,1.1785,2368.1,2367.8,6.8836]
[1726237460536,1.1785,2368.1,2367.8,0.42229]
[1726237460537,3.812164,2368.1,2367.8,0.42229]
[1726237460738,0.42227,2368.0,2367.8,0.42229]
[1726237461142,2.633694,2368.0,2367.7,0.42232]
[1726237461331,2.633704,2367.9,2367.6,0.42233]
[1726237461536,0.42231,2367.8,2367.6,0.42233]
[1726237461843,0.7604,2367.7,2367.6,0.42233]
[1726237462143,1.1571,2367.7,2367.6,0.42233]
[1726237462737,1.1571,2367.7,2367.5,0.42235]
[1726237463634,1.1571,2367.7,2367.6,0.42234]
[1726237463834,1.1571,2367.7,2367.5,0.42235]
[1726237464145,1.57943,2367.7,2367.5,0.42236]
[1726237464849,1.57944,2367.7,2367.5,0.42236]
[1726237466050,1.57943,2367.7,2367.4,4.11867]
[1726237466346,1.57943,2367.7,2367.4,3.6963]
[1726237466535,1.57943,2367.7,2367.5,0.42236]
[1726237466741,0.42234,2367.6,2367.4,4.11866]
[1726237466945,1.57943,2367.7,2367.5,0.42235]
[1726237467735,1.1571,2367.7,2367.6,0.42234]
[1726237467936,0.7802,2367.7,2367.6,0.42234]
[1726237468141,0.80169,2367.9,2367.7,0.42231]
[1726237468847,0.80169,2367.9,2367.6,6.5078]
[1726237468848,0.80169,2367.9,2367.6,6.93013]
[1726237469141,0.42231,2367.8,2367.6,3.63013]
[1726237469944,0.42231,2367.8,2367.6,3.2078]
[1726237470246,0.42231,2367.8,2367.6,3.63014]
[1726237471343,3.013104,2367.9,2367.6,3.63014]
[1726237471544,0.42232,2367.7,2367.6,3.2078]
[1726237472343,0.42235,2367.6,2367.4,0.81867]
[1726237472551,0.7615,2367.6,2367.4,0.81867]
[1726237472753,0.7615,2367.6,2367.5,0.42236]
[1726237473052,0.7615,2367.6,2367.5,3.63016]
[1726237473753,0.7615,2367.6,2367.5,0.42236]
[1726237473952,0.7615,2367.6,2367.5,3.63016]
[1726237474249,0.3691,2367.8,2367.7,0.42232]
[1726237475261,0.4088,2368.0,2367.7,3.3]
[1726237475457,0.4088,2368.0,2367.9,3.72229]
[1726237475753,0.4088,2368.0,2367.9,0.42229]
[1726237476958,0.4088,2368.0,2367.8,4.0183]
[1726237477349,0.4088,2368.0,2367.8,3.596]
[1726237477559,0.83107,2368.0,2367.8,0.3882]
[1726237477745,0.42229,2367.9,2367.7,3.72231]
[1726237478058,0.42229,2367.9,2367.7,0.42231]
[1726237478059,0.3994,2367.8,2367.7,0.42231]
[1726237478260,0.3994,2367.8,2367.6,0.3875]
[1726237478461,0.3994,2367.8,2367.7,0.42232]
[1726237481757,0.3994,2367.8,2367.6,0.3875]
[1726237481758,4.6226,2367.8,2367.5,3.596]
[1726237481963,0.82684,2367.7,2367.5,0.3882]
[1726237482168,0.82684,2367.7,2367.5,0.81056]
[1726237482460,0.82364,2367.6,2367.4,0.42237]
[1726237483960,0.42237,2367.5,2367.4,0.42238]
[1726237484166,0.42237,2367.5,2367.3,0.81489]
[1726237484360,0.4092,2367.4,2367.3,0.81489]
[1726237486366,5.68915,2367.4,2367.1,0.42242]
[1726237486663,5.68915,2367.4,2367.0,0.3944]
[1726237486664,0.4029,2367.3,2367.0,0.3944]
[1726237486867,0.8253,2367.3,2367.1,0.42242]
[1726237487764,0.8253,2367.3,2367.0,0.3944]
[1726237487765,0.80731,2367.2,2367.0,0.81684]
[1726237488657,0.3849,2367.2,2367.1,0.42243]